bitfinex-derivatives/quotes_ETHF0:USTF0_20260308
["timestamp","ask_amount","ask_price","bid_price","bid_amount"]
[1772967170790,6.60521936,1972.5,1971.8,5.84475372]
[1772967170991,5.86208413,1972.5,1971.8,5.84475372]
[1772967171493,6.57782596,1972.5,1971.8,5.84475372]
[1772967173995,5.86208413,1972.5,1971.8,5.84475372]
[1772967174298,0.67246466,1972.6,1971.8,5.84475372]
[1772967175001,0.00525122,1972.6,1971.8,5.84475372]
[1772967180002,0.38079503,1972.5,1971.8,5.84475372]
[1772967180201,0.00525122,1972.6,1972.0,5.67082134]
[1772967180403,0.00525122,1972.6,1972.0,5.67446815]
[1772967181094,0.38927308,1972.6,1972.0,5.67446815]
[1772967181302,5.4843748,1972.5,1972.0,5.67446815]
[1772967183504,5.81897002,1972.5,1972.0,5.67446815]
[1772967184108,0.33459522,1972.4,1972.0,5.67446815]
[1772967184716,5.80943782,1972.5,1972.0,5.67446815]
[1772967185799,0.32233253,1972.4,1971.9,5.66810542]
[1772967186803,0.32233253,1972.4,1971.9,5.67459891]
[1772967190407,5.69739001,1972.5,1971.9,5.67459891]
[1772967193205,0.11216371,1972.4,1971.9,5.67459891]
[1772967193911,0.11216371,1972.2,1971.9,0.00649349]
[1772967194112,0.11216371,1972.2,1971.9,5.74440974]
[1772967195206,5.41889796,1972.1,1971.9,5.74440974]
[1772967199213,6.20089143,1972.1,1971.8,5.40557003]
[1772967199913,5.41889796,1972.1,1971.8,5.40557003]
[1772967200212,5.41889796,1972.1,1971.8,5.41079857]
[1772967202213,0.80367671,1972.0,1971.8,0.00522854]
[1772967202714,0.80367671,1972.4,1971.8,5.41079857]
[1772967203114,0.71109735,1972.2,1971.8,5.41079857]
[1772967203316,0.71109735,1972.2,1971.8,5.31973854]
[1772967203617,6.41425743,1972.1,1971.8,5.31973854]
[1772967204017,0.78833623,1972.1,1971.8,5.31973854]
[1772967204216,5.85091256,1972.0,1971.8,5.32569]
[1772967204618,0.78519213,1971.9,1971.8,0.00595146]
[1772967204915,6.63610469,1972.0,1971.8,0.00595146]
[1772967206117,0.56008334,1971.9,1971.6,5.49018195]
[1772967206318,5.85091256,1972.0,1971.6,5.49018195]
[1772967206520,6.39574459,1972.0,1971.6,5.49018195]
[1772967207122,6.09386324,1972.0,1971.6,5.49603385]
[1772967207318,5.85091256,1972.0,1971.6,5.49603385]
[1772967210016,0.49287093,1972.6,1971.6,5.49603385]
[1772967210422,4.83245381,1972.4,1971.6,5.49603385]
[1772967210722,5.75272116,1972.3,1971.6,5.49603385]
[1772967211819,0.00525122,1972.6,1971.6,5.49603385]
[1772967212122,5.28008194,1973.0,1971.9,5.40557003]
[1772967212423,5.28008194,1973.0,1971.6,0.0058519]
[1772967212424,5.28008194,1972.9,1972.1,5.40557003]
[1772967212618,5.28008194,1972.9,1972.3,5.92925014]
[1772967212818,4.91983959,1972.9,1972.3,5.92925014]
[1772967213017,5.47220504,1972.8,1972.3,5.92925014]
[1772967215025,11.02566358,1972.8,1972.3,5.92925014]
[1772967215317,5.55345854,1972.7,1972.3,5.92925014]
[1772967219726,5.55345854,1972.7,1971.8,5.92925014]
[1772967219928,5.55345854,1972.5,1972.1,5.92925014]
[1772967221427,5.55345854,1972.8,1972.1,5.92925014]
[1772967221830,5.55345854,1972.7,1972.1,5.92925014]
[1772967222235,11.38353547,1972.6,1972.1,5.92925014]
[1772967222732,5.55345854,1972.6,1972.1,5.92925014]
[1772967222930,5.62594159,1972.5,1972.1,5.92925014]
[1772967224635,11.17940013,1972.5,1972.1,5.92925014]
[1772967230934,5.55345854,1972.4,1972.1,5.92925014]
[1772967231141,5.55345854,1972.4,1972.0,5.92925014]
[1772967241855,5.55345854,1972.4,1971.7,5.92925014]
[1772967242158,5.4719407,1972.3,1971.8,5.92925014]
[1772967242559,11.02539924,1972.3,1971.8,5.92925014]
[1772967242958,5.55345854,1972.3,1971.8,5.92925014]
[1772967243160,11.61355556,1972.2,1971.8,5.92925014]
[1772967243557,6.01461797,1972.2,1971.8,5.92925014]
[1772967252769,6.01461797,1972.7,1971.8,5.92925014]
[1772967253162,6.01461797,1972.6,1971.8,5.92925014]
[1772967253473,5.58176418,1972.5,1971.8,5.92925014]
[1772967253670,6.01461797,1972.4,1971.8,5.92925014]
[1772967254065,6.01461797,1972.2,1971.8,5.92925014]
[1772967258779,6.01461797,1972.5,1971.8,5.92925014]
[1772967259173,11.43388,1972.4,1971.8,5.92925014]
[1772967259573,6.01461797,1972.3,1971.8,5.92925014]
[1772967259875,11.39196794,1972.3,1971.8,5.92925014]
[1772967260077,6.01461797,1972.3,1971.8,5.92925014]
[1772967260478,5.37734997,1972.2,1971.8,5.92925014]
[1772967261275,11.39196794,1972.2,1971.8,5.92925014]
[1772967262977,6.01461797,1972.1,1971.8,5.92925014]
[1772967263478,6.01461797,1972.7,1971.8,5.92925014]
[1772967263980,6.01461797,1972.6,1971.8,5.92925014]
[1772967264477,5.5492507,1972.7,1971.8,5.92925014]
[1772967264478,6.01461797,1972.4,1971.8,5.92925014]
[1772967270179,0.25347,1972.8,1971.8,5.92925014]
[1772967270380,6.01461797,1972.7,1971.8,5.92925014]
[1772967270674,6.01461797,1972.6,1971.8,5.92925014]
[1772967273882,6.06639166,1972.4,1971.8,5.92925014]
[1772967277082,6.06639166,1972.8,1971.8,5.92925014]
[1772967277377,11.42992225,1972.8,1971.8,5.92925014]
[1772967277680,6.06639166,1972.7,1971.8,5.92925014]
[1772967277981,5.63233378,1972.6,1971.8,5.92925014]
[1772967278181,6.06639166,1972.5,1971.8,5.92925014]
[1772967292098,6.06639166,1972.3,1971.7,37.87844228]
[1772967292399,6.06639166,1972.5,1971.8,5.48844228]
[1772967297202,6.06639166,1972.8,1971.8,5.48844228]
[1772967297505,6.06639166,1972.7,1971.9,5.48844228]
[1772967297901,5.5232971,1972.6,1971.9,5.48844228]
[1772967298110,6.07294818,1972.9,1972.1,5.48844228]
[1772967298408,5.43308479,1972.8,1972.1,5.48844228]
[1772967298604,6.07294818,1972.9,1972.1,5.48844228]
[1772967298906,5.60419755,1972.8,1972.1,5.48844228]
[1772967299107,11.67058921,1972.8,1972.3,5.48844228]
[1772967300206,6.07294818,1972.9,1972.3,5.48844228]
[1772967308113,5.77216655,1973.1,1972.3,5.48844228]
[1772967309014,5.77865604,1973.1,1972.3,5.48844228]
[1772967312017,5.77216655,1972.9,1972.4,38.19758718]
[1772967312517,5.77216655,1972.9,1972.5,5.74958718]
[1772967314216,5.77865604,1973.1,1972.5,5.74958718]
[1772967314618,11.21401908,1973.0,1972.5,5.74958718]
[1772967316519,5.77216655,1973.0,1972.5,5.74958718]
[1772967317022,5.77216655,1973.0,1972.5,32.463]
[1772967320024,5.77216655,1972.8,1972.5,32.463]
[1772967324726,5.77216655,1972.8,1972.5,38.21258718]
[1772967329720,5.77216655,1973.0,1972.6,5.74958718]
[1772967329926,5.77216655,1973.0,1972.5,38.21258718]
[1772967330127,5.77216655,1972.9,1972.5,38.21258718]
[1772967334828,5.77216655,1972.9,1972.6,5.57577505]
[1772967336226,5.77216655,1972.9,1972.5,32.463]
[1772967336430,5.77216655,1972.9,1972.6,5.57577505]
[1772967357135,0.00648949,1973.1,1972.6,5.57577505]
[1772967357336,5.87427187,1973.0,1972.6,5.57577505]
[1772967357635,11.43893359,1973.0,1972.6,5.57577505]
[1772967357834,5.87427187,1972.9,1972.6,5.57577505]
[1772967360042,5.87427187,1973.0,1972.6,5.57577505]
[1772967360340,0.00648949,1973.1,1972.6,5.57577505]
[1772967360537,5.87427187,1973.5,1972.6,5.57577505]
[1772967360932,1.3017459,1973.8,1973.0,5.57577505]
[1772967361134,5.87427187,1973.7,1973.2,5.57577505]
[1772967361332,11.23041541,1973.7,1973.2,5.57577505]
[1772967361539,11.23698401,1973.7,1973.2,5.58223137]
[1772967361942,5.87427187,1973.6,1973.2,5.58223137]
[1772967364344,5.54663836,1973.7,1973.2,5.58223137]
[1772967364642,10.9760808,1973.6,1973.2,5.58223137]
[1772967365344,5.54006976,1973.5,1973.2,0.00645632]
[1772967365544,5.54006976,1973.5,1973.2,5.93077823]
[1772967366041,5.54663836,1973.7,1973.2,5.93077823]
[1772967366441,5.58584159,1973.6,1973.2,5.93077823]
[1772967366746,11.12591135,1973.6,1973.2,5.93077823]
[1772967374947,5.54006976,1973.8,1973.2,5.93077823]
[1772967375852,5.54471111,1973.8,1973.2,5.93077823]
[1772967376954,0.00464135,1973.8,1973.2,5.93077823]
[1772967377756,5.54006976,1974.1,1973.2,5.93077823]
[1772967378055,11.15371933,1974.0,1973.2,5.93077823]
[1772967378455,5.54006976,1974.0,1973.2,5.93077823]
[1772967378656,5.62132334,1973.9,1973.2,5.93077823]
[1772967378956,5.54626584,1974.0,1973.2,5.93077823]
[1772967379758,5.54006976,1973.8,1973.3,32.713]
[1772967380152,5.54006976,1973.6,1973.3,38.63732191]
[1772967380551,5.54006976,1973.6,1973.2,0.00645632]
[1772967380748,5.54006976,1973.6,1973.0,5.92432191]
[1772967381652,5.54006976,1973.6,1973.0,5.93087196]
[1772967384053,5.54006976,1973.4,1972.8,5.92432191]
[1772967384260,5.54006976,1973.4,1972.9,5.92432191]
[1772967384459,11.21369353,1973.3,1972.9,5.92432191]
[1772967384659,5.54006976,1973.2,1972.9,5.92432191]
[1772967384858,5.54006976,1973.3,1972.9,5.92432191]
[1772967385260,5.54006976,1973.3,1972.9,5.92848122]
[1772967385650,5.54006976,1973.9,1972.9,5.92848122]
[1772967385958,5.54006976,1973.8,1972.9,5.92848122]
[1772967386362,5.54006976,1973.6,1972.9,5.92848122]
[1772967386656,11.36450039,1973.5,1972.9,5.92848122]
[1772967387061,5.54006976,1973.5,1972.9,5.92848122]
[1772967387765,5.54006976,1973.9,1972.9,5.92848122]
[1772967388166,5.54006976,1973.8,1972.9,5.92848122]
[1772967388466,5.70963585,1973.7,1972.9,5.92848122]
[1772967388655,5.54006976,1973.6,1972.9,5.92848122]
[1772967389061,5.54006976,1973.4,1972.9,5.92848122]
[1772967391567,5.54006976,1973.9,1973.0,5.92432191]
[1772967392065,5.54006976,1973.8,1973.0,5.92432191]
[1772967392568,5.54006976,1973.6,1973.0,5.92432191]
[1772967392959,5.48359299,1973.8,1973.2,5.90257697]
[1772967393264,0.00619608,1974.0,1973.5,5.90257697]
[1772967393458,0.00619608,1974.0,1973.7,5.90257697]
[1772967393655,5.50700469,1974.1,1973.6,38.59057697]
[1772967393958,5.71790876,1974.0,1973.7,5.90257697]
[1772967394159,11.22491345,1974.0,1973.6,5.90257697]
[1772967394567,11.23032506,1974.0,1973.6,5.90257697]
[1772967395067,5.50700469,1973.9,1973.6,5.90257697]
[1772967395466,5.5124163,1974.0,1973.6,5.90257697]
[1772967397964,0.00541161,1974.0,1973.6,5.90257697]
[1772967398166,5.50700469,1974.1,1973.6,5.90257697]
[1772967398663,5.50700469,1974.5,1973.6,5.90257697]
[1772967399063,5.50700469,1974.4,1973.6,5.90257697]
[1772967399971,5.50700469,1974.2,1973.6,5.90257697]
[1772967400467,5.50700469,1974.0,1973.6,5.90257697]
[1772967400866,10.95870237,1974.2,1973.6,5.90257697]
[1772967401068,5.50700469,1974.2,1973.6,5.90257697]
[1772967409275,0.00613877,1974.5,1973.6,5.90257697]
[1772967409478,5.50700469,1974.4,1973.6,5.90257697]
[1772967409678,5.50700469,1974.3,1973.6,5.90257697]
[1772967412375,5.50700469,1974.1,1973.6,5.90257697]
[1772967413273,5.50700469,1974.4,1973.6,5.90257697]
[1772967413576,10.92210521,1974.4,1973.6,5.90257697]
[1772967413773,5.50700469,1974.3,1973.6,5.90257697]
[1772967414171,5.41510052,1974.2,1973.6,5.90257697]
[1772967414376,5.50700469,1974.3,1973.6,5.90257697]
[1772967420176,0.00613877,1974.5,1973.8,5.90257697]
[1772967420380,4.93925574,1974.5,1973.8,5.90257697]
[1772967420580,5.50700469,1974.3,1973.8,5.90257697]
[1772967420780,5.50700469,1974.3,1973.9,32.842]
[1772967420982,5.50700469,1974.1,1973.6,38.74657697]
[1772967421285,5.51240266,1974.1,1973.6,38.74657697]
[1772967421982,5.51240266,1974.1,1973.6,5.90257697]
[1772967422287,5.51240266,1974.1,1973.6,32.853]
[1772967422978,5.9447601,1973.9,1973.3,32.86]
[1772967423376,5.88541475,1973.7,1973.3,32.86]
[1772967424183,5.88541475,1973.7,1973.3,38.77471964]
[1772967425587,5.88541475,1973.7,1973.4,5.91471964]
[1772967429688,5.88541475,1974.0,1973.4,5.91471964]
[1772967430089,5.88541475,1973.9,1973.4,5.91471964]
[1772967433192,5.88541475,1973.7,1973.3,38.77471964]
[1772967433492,5.88541475,1973.7,1973.4,5.91471964]
[1772967435892,5.88541475,1974.0,1973.4,5.91471964]
[1772967436288,5.88541475,1973.9,1973.4,5.91471964]
[1772967436692,11.51482702,1973.8,1973.4,5.91471964]
[1772967436894,5.62941227,1973.8,1973.4,5.91471964]
[1772967437093,5.88541475,1973.8,1973.4,5.91471964]
[1772967438696,5.88541475,1973.8,1973.3,38.77471964]
[1772967438900,5.88541475,1973.8,1973.4,5.91471964]
[1772967440397,5.88541475,1973.8,1973.2,5.91471964]
[1772967440596,5.88541475,1973.6,1973.1,5.91471964]
[1772967442501,5.88541475,1973.4,1972.9,5.91887895]
[1772967449805,5.88541475,1973.2,1972.9,5.91887895]
[1772967450006,5.88541475,1973.2,1972.7,38.88571964]
[1772967450602,5.88541475,1973.2,1972.7,5.91471964]
[1772967451011,5.88541475,1973.2,1972.7,5.91974406]
[1772967454518,5.80633495,1973.0,1972.5,5.81443089]
[1772967455519,5.80633495,1973.0,1972.5,5.81888691]
[1772967456029,5.80633495,1972.8,1972.1,5.81443089]
[1772967456318,0.33673326,1972.7,1972.1,5.81443089]
[1772967456523,5.80633495,1972.6,1972.1,5.81443089]
[1772967456822,5.66175187,1972.5,1971.9,5.81443089]
[1772967457012,5.80633495,1972.4,1971.9,5.820802]
[1772967457414,5.63286713,1972.3,1971.9,5.820802]
[1772967457620,11.43920208,1972.3,1971.9,5.820802]
[1772967457817,5.80633495,1972.2,1971.9,5.820802]
[1772967464929,5.80633495,1972.2,1971.9,0.00637111]
[1772967465828,5.80633495,1972.2,1971.8,5.81443089]
[1772967465829,5.80633495,1972.2,1971.5,5.81443089]
[1772967466729,5.80633495,1972.2,1971.5,5.81806656]
[1772967467631,5.80633495,1972.4,1971.5,5.81806656]
[1772967467926,5.80633495,1972.3,1971.5,5.81806656]
[1772967474434,5.80633495,1972.1,1971.5,5.81806656]
[1772967475930,5.80633495,1972.1,1971.5,0.00363567]
[1772967476134,11.32097735,1972.0,1971.5,5.81806656]
[1772967476431,5.80633495,1972.0,1971.5,5.81806656]
[1772967479034,5.80633495,1972.0,1971.5,0.00363567]
[1772967480231,5.80633495,1971.8,1971.5,0.00363567]
[1772967481330,5.80633495,1972.2,1971.5,5.81806656]
[1772967485631,5.50514217,1972.1,1971.5,5.81806656]
[1772967485833,5.22210073,1972.0,1971.5,5.81806656]
[1772967486838,5.22210073,1972.4,1971.5,5.81806656]
[1772967487335,5.22210073,1972.3,1971.6,5.45396999]
[1772967487637,5.88690703,1972.2,1971.6,5.45396999]
[1772967487837,5.22210073,1972.1,1971.6,5.45396999]
[1772967491833,5.22210073,1972.1,1971.5,10.54093846]
[1772967492034,5.41134523,1972.0,1971.5,0.00363567]
[1772967492336,5.22210073,1971.9,1971.5,5.45760566]
[1772967493534,5.22210073,1971.9,1971.5,0.00363567]
[1772967494238,5.22210073,1971.9,1971.5,5.45760566]
[1772967497038,5.22210073,1971.9,1971.5,0.00363567]
[1772967497235,5.22210073,1971.7,1971.3,15.99127278]
[1772967497440,4.39820001,1971.7,1971.3,15.99127278]
[1772967497938,4.39820001,1971.7,1971.4,5.45396999]
[1772967498238,4.39820001,1971.7,1971.4,5.45856488]
[1772967500136,4.39820001,1971.7,1971.4,5.44695736]
[1772967500535,4.39820001,1971.7,1971.4,0.00459489]
[1772967502542,5.22210073,1972.4,1971.4,5.45856488]
[1772967502944,5.22210073,1972.3,1971.4,5.45856488]
[1772967503241,5.58353362,1972.2,1971.4,5.45856488]
[1772967503443,5.22210073,1972.1,1971.4,5.45856488]
[1772967503743,5.22210073,1971.9,1971.4,5.45856488]
[1772967504138,5.29062279,1971.8,1971.5,5.45396999]
[1772967504342,5.22210073,1972.1,1971.5,5.45396999]
[1772967504738,10.91373028,1972.0,1971.5,5.45396999]
[1772967505139,5.22210073,1972.0,1971.5,5.45396999]
[1772967505340,5.69162955,1971.9,1971.5,5.45396999]
[1772967508449,5.67881015,1971.9,1971.5,5.45396999]
[1772967509650,10.90091088,1971.9,1971.5,5.45396999]
[1772967512251,5.67881015,1971.9,1971.5,5.45396999]
[1772967512552,11.0785768,1971.9,1971.5,5.45396999]
[1772967514852,5.39976665,1972.0,1971.5,5.45396999]
[1772967515250,5.39976665,1972.2,1971.6,5.43896152]
[1772967515449,5.39976665,1972.2,1971.7,5.43896152]
[1772967517956,5.39976665,1972.4,1971.9,5.43896152]
[1772967518455,5.39976665,1972.3,1971.9,5.43896152]
[1772967533862,5.39976665,1972.3,1971.7,15.97626431]
[1772967534267,5.39976665,1972.3,1971.8,5.43896152]
[1772967537264,5.39976665,1972.1,1971.7,10.53730279]
[1772967537459,5.39976665,1972.1,1971.7,5.43896152]
[1772967540973,5.39976665,1972.1,1971.6,38.15596152]
[1772967541775,5.39976665,1972.1,1971.7,5.43896152]
[1772967546177,5.39976665,1972.1,1971.6,48.72722595]
[1772967548779,5.39976665,1972.1,1971.7,5.47292316]
[1772967550279,5.39976665,1972.1,1971.6,48.72722595]
[1772967550479,5.39976665,1972.1,1971.7,5.47292316]
[1772967553481,5.39976665,1972.1,1971.5,16.01022595]
[1772967554282,5.39976665,1972.1,1971.6,5.47292316]
[1772967554780,5.39976665,1972.1,1971.5,10.53730279]
[1772967554981,5.39976665,1972.1,1971.4,16.01482084]
[1772967555174,5.39976665,1972.1,1971.5,5.47292316]
[1772967559778,5.61381342,1972.0,1971.5,5.47292316]
[1772967559983,5.60269034,1971.9,1971.5,5.47292316]
[1772967563184,5.60269034,1971.9,1971.6,5.47292316]
[1772967563780,5.60269034,1971.9,1971.5,5.47292316]
[1772967564181,5.60269034,1972.4,1971.5,5.47292316]
[1772967564486,5.60269034,1972.3,1971.5,5.47292316]
[1772967564986,5.60269034,1972.1,1971.5,5.47292316]
[1772967565387,5.60269034,1971.9,1971.5,5.47292316]
[1772967565786,0.44611706,1971.8,1971.5,5.47292316]
[1772967565982,5.60269034,1972.0,1971.5,5.47292316]
[1772967566384,5.44804367,1971.9,1971.5,5.47292316]
[1772967567287,11.05073401,1971.9,1971.5,5.47292316]
[1772967568288,11.05073401,1971.9,1971.6,5.47292316]
[1772967570089,5.60269034,1971.8,1971.5,16.01022595]
[1772967570290,4.77882304,1971.8,1971.5,16.01022595]
[1772967570590,5.60269034,1972.4,1971.6,5.47292316]
[1772967570890,5.60269034,1972.3,1971.6,5.47292316]
[1772967571184,5.48695102,1972.2,1971.6,5.47292316]
[1772967571392,5.60269034,1972.1,1971.6,5.47292316]
[1772967571689,5.60269034,1971.9,1971.6,5.47292316]
[1772967577492,5.47237521,1972.3,1971.6,5.47292316]
[1772967577789,5.47237521,1972.2,1971.6,5.47292316]
[1772967578095,5.33995279,1972.1,1971.6,5.47292316]
[1772967578294,5.47237521,1972.0,1971.6,5.47292316]
[1772967578595,5.33995279,1971.9,1971.6,5.47292316]
[1772967579896,5.47237521,1972.1,1971.6,5.47292316]
[1772967580196,5.5778941,1972.0,1971.6,5.47292316]
[1772967580398,11.05026931,1972.0,1971.6,5.47292316]
[1772967582398,5.47237521,1971.9,1971.6,5.47292316]
[1772967591500,6.32415819,1973.0,1971.6,5.47292316]
[1772967591501,4.25824953,1973.0,1971.6,5.47292316]
[1772967591704,4.99261507,1974.4,1972.9,0.5073]
[1772967591906,4.99261507,1974.4,1973.8,0.5073]
[1772967592106,4.99261507,1974.4,1974.0,0.5073]
[1772967592408,5.47237521,1974.2,1974.1,5.71033873]
[1772967592607,5.4765171,1974.2,1974.1,4.19038274]
[1772967592906,5.4765171,1974.2,1973.9,4.80104255]
[1772967593110,5.4765171,1974.2,1973.9,36.94804255]
[1772967593308,4.68769062,1974.4,1974.0,4.33329149]
[1772967593711,10.03325641,1975.1,1974.0,4.33329149]
[1772967593712,11.01279001,1974.3,1974.0,4.33329149]
[1772967594404,11.01696056,1974.3,1974.0,4.33853271]
[1772967594605,5.47237521,1974.2,1974.0,0.00524122]
[1772967595507,5.47237521,1974.0,1973.6,37.58977187]
[1772967595710,5.47237521,1974.0,1973.6,32.326]
[1772967596010,5.47237521,1974.0,1973.6,37.59877187]
[1772967596412,5.47237521,1974.0,1973.6,37.60234607]
[1772967597505,5.47237521,1974.0,1973.6,5.27634607]
[1772967597709,5.47237521,1974.0,1973.7,32.483]
[1772967599711,5.47237521,1973.8,1973.3,32.616]
[1772967599913,5.47237521,1973.8,1973.4,32.626]
[1772967600101,5.47237521,1973.6,1973.3,4.63786161]
[1772967600302,5.47237521,1973.6,1973.3,37.27586161]
[1772967600505,5.47237521,1973.6,1973.3,32.638]
[1772967600701,5.47237521,1973.6,1973.3,32.64301448]
[1772967601008,10.92860849,1973.5,1973.3,0.00501448]
[1772967601310,5.47237521,1973.4,1973.2,31.86541937]
[1772967601910,5.47237521,1973.2,1973.1,32.471]
[1772967602110,5.47237521,1973.2,1973.1,32.4757698]
[1772967602313,5.47237521,1973.3,1973.1,32.5027698]
[1772967602510,4.89837522,1973.3,1973.1,32.5027698]
[1772967603111,6.84701628,1974.1,1973.1,38.52755921]
[1772967603312,6.84701628,1974.0,1973.2,6.04734016]
[1772967603705,6.36989193,1973.8,1973.2,6.04734016]
[1772967604111,6.36989193,1973.6,1973.2,6.04734016]
[1772967604509,10.03325641,1973.8,1973.2,6.04734016]
[1772967604510,11.84120518,1973.5,1973.2,6.04734016]
[1772967604911,6.36989193,1973.5,1973.2,6.04734016]
[1772967606119,16.40314834,1973.6,1973.2,6.04734016]
[1772967606311,10.03325641,1973.5,1973.2,6.04734016]
[1772967606511,15.76692971,1973.5,1973.2,6.04734016]
[1772967606716,22.13682164,1973.5,1973.2,6.04734016]
[1772967608422,12.10356523,1973.5,1973.2,6.04734016]
[1772967608720,15.76692971,1973.5,1973.2,6.04734016]
[1772967608921,6.36989193,1973.7,1973.2,6.04734016]
[1772967609122,10.03325641,1973.6,1973.2,6.04734016]
[1772967609324,15.70320252,1973.6,1973.2,6.04734016]
[1772967609622,6.36989193,1974.2,1973.2,6.04734016]
[1772967609923,6.36989193,1973.8,1973.2,6.04734016]
[1772967615027,16.40314834,1973.8,1973.4,6.32961195]
[1772967615228,16.40314834,1973.8,1973.5,39.33061195]
[1772967615429,14.72599506,1973.8,1973.5,39.33061195]
[1772967615728,6.36989193,1974.0,1973.6,6.35411704]
[1772967616821,6.36989193,1974.0,1973.7,33.029]
[1772967618732,6.36989193,1974.0,1973.7,39.56615441]
[1772967619332,6.36989193,1974.0,1973.7,47.42157781]
[1772967619727,6.36989193,1974.0,1973.7,7.8554234]
[1772967619938,6.36989193,1973.8,1973.7,40.35242341]
[1772967620241,13.67318384,1974.2,1973.7,33.071]
[1772967620444,14.72599506,1973.9,1973.7,33.071]
[1772967624146,13.90295397,1973.9,1973.7,33.071]
[1772967624345,13.90295397,1973.9,1973.7,43.61492385]
[1772967624947,13.90295397,1973.9,1973.7,50.52163994]
[1772967625143,6.36989193,1973.7,1973.4,20.08662091]
[1772967625446,6.36989193,1973.7,1973.5,33.119]
[1772967625447,6.04108563,1973.7,1973.5,33.119]
[1772967625647,6.04108563,1973.7,1973.4,6.90671609]
[1772967625943,6.04108563,1973.7,1972.2,6.381]
[1772967625944,6.36989193,1973.5,1972.7,6.90671609]
[1772967626148,6.36989193,1973.5,1972.9,6.90671609]
[1772967626447,11.86731851,1973.4,1973.0,39.91471609]
[1772967626648,5.49742658,1973.4,1973.1,6.90671609]
[1772967626841,11.86731851,1973.5,1973.1,6.90671609]
[1772967627042,6.36989193,1973.5,1973.1,13.22783192]
[1772967629544,6.36989193,1973.3,1973.1,6.32111583]
[1772967629748,6.36989193,1973.3,1973.1,0.00399606]
[1772967633753,6.36989193,1973.3,1972.7,8.70488469]
[1772967633952,8.25198485,1973.1,1972.8,33.108]
[1772967634451,8.25198485,1973.1,1972.8,41.81288469]
[1772967634652,8.25198485,1973.9,1973.0,8.70488469]
[1772967634853,8.25198485,1973.9,1973.0,8.71044215]
[1772967635053,8.25198485,1973.8,1973.0,8.71044215]
[1772967635452,5.78946159,1973.7,1973.0,8.71044215]
[1772967635657,8.25198485,1973.6,1973.0,8.71044215]
[1772967636054,8.25198485,1973.4,1973.0,0.00555746]
[1772967636452,8.25198485,1973.2,1973.0,0.00555746]
[1772967636856,1.62307361,1973.1,1973.0,0.00555746]
[1772967638758,8.25198485,1973.2,1973.0,6.32267723]
[1772967641155,8.25198485,1973.2,1973.0,6.1346213]
[1772967642062,8.25198485,1973.2,1973.0,6.14113682]
[1772967647166,8.25198485,1973.2,1973.0,1.44818253]
[1772967647365,8.25198485,1973.2,1973.0,1.10973628]
[1772967647866,8.25198485,1973.2,1972.9,33.107]
[1772967648164,8.25198485,1973.2,1972.9,33.108]
[1772967648760,8.25198485,1973.2,1972.9,33.11290698]
[1772967650168,8.25198485,1973.2,1972.9,41.81779167]
[1772967650867,8.25198485,1973.2,1972.9,0.00490698]
[1772967651067,8.25198485,1973.2,1972.9,33.13590698]
[1772967654970,8.25198485,1973.0,1972.6,10.51328885]
[1772967655173,8.25198485,1973.0,1972.6,41.85888469]
[1772967655371,12.28083931,1974.0,1972.5,10.51328885]
[1772967655372,8.25198485,1972.8,1972.5,19.21817354]
[1772967655664,5.58615625,1973.0,1972.6,41.86088469]
[1772967655870,1.70352847,1972.9,1972.6,41.86088469]
[1772967656065,1.70864848,1972.9,1972.6,41.8666541]
[1772967656270,5.7226262,1972.8,1972.6,41.8666541]
[1772967657972,2.05970412,1972.7,1972.6,32.58776942]
[1772967658472,2.05981443,1972.8,1972.6,32.58776942]
[1772967658772,7.38400016,1972.8,1972.6,32.58776942]
[1772967658973,5.32418573,1972.8,1972.6,41.29265411]
[1772967659374,5.32418573,1972.8,1972.7,8.70488469]
[1772967660774,5.32418573,1972.8,1972.6,41.29265411]
[1772967661272,5.32418573,1972.8,1972.6,32.58776942]
[1772967661473,7.26563628,1972.8,1972.6,32.58776942]
[1772967661768,1.94145055,1972.7,1972.6,27.05023674]
[1772967662174,7.35789799,1972.7,1972.6,27.05023674]
[1772967662374,5.41644744,1972.7,1972.6,27.05023674]
[1772967662675,5.79396455,1972.8,1972.6,27.05023674]
[1772967663072,5.79396455,1972.8,1972.6,0.00576941]
[1772967664076,5.41644744,1972.8,1972.6,9.57278417]
[1772967666175,5.41644744,1972.8,1972.6,0.00576941]
[1772967666368,5.62441572,1972.8,1972.6,0.00576941]
[1772967670076,0.12804602,1972.7,1972.6,0.00576941]
[1772967670675,5.52929996,1972.8,1972.6,0.00576941]
[1772967671176,0.11285252,1972.7,1972.6,0.00576941]
[1772967671677,5.50391001,1972.7,1972.6,0.00576941]
[1772967672076,5.39105749,1972.7,1972.6,0.00576941]
[1772967672477,5.74775908,1972.8,1972.6,0.00576941]
[1772967672679,0.09904773,1972.8,1972.6,0.00576941]
[1772967672876,5.64871135,1972.7,1972.6,0.00576941]
[1772967674479,5.65368389,1972.7,1972.6,0.00576941]
[1772967674780,0.00497254,1972.7,1972.6,0.00576941]
[1772967675176,5.87402671,1972.7,1972.6,0.00576941]
[1772967678781,5.86905417,1972.7,1972.3,9.60054356]
[1772967679181,5.329397,1972.8,1972.3,9.60054356]
[1772967679481,0.00512001,1972.9,1972.3,9.60054356]
[1772967679676,5.329397,1972.8,1972.3,9.60054356]
[1772967679870,5.329397,1972.8,1972.3,9.60568766]
[1772967685384,0.1645744,1972.7,1972.3,9.60568766]
[1772967685785,5.87705995,1972.6,1972.3,9.60568766]
[1772967686980,6.01096001,1972.6,1972.3,9.60568766]
[1772967687286,0.18364117,1972.5,1972.1,9.44765819]
[1772967687778,5.32063575,1972.4,1972.1,9.44765819]
[1772967687974,4.3449965,1972.4,1972.1,9.44765819]
[1772967688288,4.3449965,1972.4,1972.1,9.45245332]
[1772967689486,3.77099651,1972.4,1972.1,9.45245332]
[1772967689787,3.17740387,1972.4,1972.1,9.45245332]
[1772967692588,3.42832161,1972.4,1972.1,42.65845332]
[1772967692888,3.17740387,1972.4,1972.2,9.44415441]
[1772967693387,0.31092344,1972.7,1972.2,9.44415441]
[1772967693691,5.52694027,1972.4,1972.2,9.44415441]
[1772967693882,0.50743484,1972.4,1972.2,9.44415441]
[1772967694083,0.31092344,1972.7,1972.2,9.44415441]
[1772967694382,5.80631434,1972.6,1972.2,9.44415441]
[1772967694987,13.66322309,1972.6,1972.2,9.44415441]
[1772967695287,7.85690875,1972.6,1972.2,9.44415441]
[1772967695482,5.31020946,1972.5,1972.2,9.44415441]
[1772967700390,12.17261681,1972.6,1972.2,9.44415441]
[1772967700691,8.0342588,1972.6,1972.2,9.44415441]
[1772967701090,5.68778798,1972.5,1972.2,9.44415441]
[1772967702491,13.67763294,1972.5,1972.2,9.44415441]
[1772967702792,7.98984496,1972.5,1972.2,9.44415441]
[1772967703093,5.66766889,1972.4,1972.2,9.44415441]
[1772967703286,4.84403126,1972.4,1972.2,9.44415441]
[1772967704789,12.88818092,1972.4,1972.1,42.41887546]
[1772967705695,4.84403126,1972.4,1972.2,9.20808033]
[1772967708794,3.16687798,1972.4,1972.2,9.20808033]
[1772967710894,7.92838337,1972.6,1972.2,9.20808033]
[1772967711290,5.84585243,1972.5,1972.2,9.20808033]